Cogmind - Beta 16.1 @@@ ROGUE MODE // 2026.03.07 @ 13:29:43 Player: StaticNoob Result: Destroyed by AP-VU5(R) with Subdweller Machine Gun Performance ------------- Evolutions (0) 0 Regions Visited (2) 400 Robots Destroyed (21) 105 Value Destroyed (505) 505 Prototype IDs (15) 300 Alien Tech Used (0) 0 Bonus (0) 0 TOTAL SCORE: 1310 Bonus ------- None Cogmind --------- Core Integrity 0/250 Matter 298/300 Energy 99/100 System Corruption 0% Temperature Cool (9) Movement Core (150) Ox2 Location -10/Subcaves Parts ------- > --- POWER (1) -------- (None) > --- PROPULSION (2) --- (None) > --- UTILITY (2) ------ Small Storage Unit > --- WEAPON (2) ------- Grenade Launcher > --- INVENTORY (8) ---- High-capacity Matter Pod (95) 1B-0RG's Assimilator Peak State ------------ > --- POWER ------------ Ion Engine > --- PROPULSION ------- Subdweller Monowheel Subdweller Monowheel > --- UTILITY ---------- Small Storage Unit Seismic Detector > --- WEAPON ----------- Subdweller Beam Cannon Slug Cannon > --- INVENTORY -------- Improved Heat Sink High-capacity Matter Pod Grenade Launcher 1B-0RG's Assimilator [Rating: 20] Favorites ----------- Power Ion Engine Engine Ion Engine Propulsion Light Treads Treads Light Treads Wheel Subdweller Monowheel Utility Small Storage Unit Device Seismic Detector Storage Small Storage Unit Weapon Assault Rifle Energy Cannon Subdweller Beam Cannon Ballistic Gun Assault Rifle Ballistic Cannon Slug Cannon Launcher Grenade Launcher Build | -11 -10 -10 ------- Run | Yrd Mat Sub Slots Evolved . | . . . Power . | . . . Propulsion . | . . . Utility . | . . . Weapon . | . . . Parts Attached 17 | 7 3 7 Power 3 | 1 2 . Engine 3 | 1 2 . Core . | . . . Reactor . | . . . Propulsion 5 | 2 1 2 Treads 3 | 2 1 . Leg . | . . . Wheel 2 | . . 2 Hover . | . . . Flight . | . . . Utility 3 | 2 . 1 Device 2 | 1 . 1 Storage 1 | 1 . . Processor . | . . . Hackware . | . . . Protection . | . . . Artifact . | . . . Weapon 6 | 2 . 4 Energy Gun . | . . . Energy Cannon 2 | . . 2 Ballistic Gun 2 | 2 . . Ballistic Cannon 1 | . . 1 Launcher 1 | . . 1 Special Weapon . | . . . Impact Weapon . | . . . Slashing Weapon . | . . . Piercing Weapon . | . . . Special Melee Weapon . | . . . Unidentified Prototypes . | . . . Parts Lost 8 | . . 8 Power 1 | . . 1 Propulsion 3 | . . 3 Utility 2 | . . 2 Weapon 2 | . . 2 Highest Loss Streak 7 | . . 7 To Critical Strikes . | . . . Average Backups 6 | . 7 6 Power . | . 1 . Propulsion 1 | . 2 1 Utility 2 | . 2 2 Weapon 1 | . 1 2 Tool/Special . | . . . Unused Backups 9 | . 2 7 Power 1 | . . 1 Propulsion 2 | . . 2 Utility 4 | . 2 2 Weapon 1 | . . 1 Tool/Special 1 | . . 1 Average Slot Usage (%) 99 | . 100 98 Engine 13 | . 14 13 Treads 27 | . 28 26 Device 13 | . 14 13 Storage 14 | . 14 14 Energy Cannon 5 | . . 9 Ballistic Gun 21 | . 28 16 Peak Build Rating 20 | 7 8 20 Average Rating 9 | 5 7 10 On Entrance 5 | . 7 8 Avg Prop Armor Cover (%) 4 | . . 4 Naked Turns . | . . . Heaviest Build 26 | 15 15 26 Greatest Support 40 | 40 40 40 Greatest Overweight (x) 2 | 1 . 2 Average Overweight (x) . | . . . Largest Inventory Capacity 8 | 8 8 8 Average Capacity 7 | 7 8 8 Most Carried 8 | 1 8 8 Average Carried 7 | . 7 7 Final Capacity 8 | 8 8 8 Final Carried 8 | 1 8 6 Class Distribution -------------------- 100% | Mutant Dominant Class ---------------- Mutant | -10/Materials Mutant | -10/Subcaves Resources | -11 -10 -10 ----------- Run | Yrd Mat Sub Matter Collected 768 | 140 253 375 Remotely . | . . . Salvage Created 692 | 13 487 192 Parts 49 | 3 36 10 Haulers Intercepted 2 | . 2 . Recyclers Shooed 1 | . 1 . Parts Field Recycled . | . . . Retrieved Matter . | . . . Parts Self-Destructed 11 | . . 11 Prevented . | . . . Parts Restored . | . . . Kills | -11 -10 -10 ------- Run | Yrd Mat Sub Combat Hostiles Destroyed 15 | . 10 5 Guns 11 | . 10 1 Cannons 2 | . . 2 Classes Destroyed 7 | 1 5 1 Builder 1 | . 1 . Tunneler 1 | 1 . . Hauler 2 | . 2 . Watcher 2 | . 2 . Swarmer 4 | . 4 . Grunt 6 | . 6 . Subdweller 5 | . . 5 Best Kill Streak 5 | 1 5 3 Combat Bots Only 4 | . 4 3 Max Kills in Single Turn 2 | 1 2 1 Gunslinging 1 | . 1 . Exploded . | . . . Melee . | . . . Uniques/NPCs Destroyed . | . . . Combat | -11 -10 -10 -------- Run | Yrd Mat Sub Hostile Shots Fired 92 | . 45 47 Missed 21 | . 6 15 Hits 71 | . 39 32 Projectile 71 | . 39 32 AOE 4 | . . 4 Damage Taken 1400 | . 420 980 Core 269 | . 54 215 Absorbed by Shields . | . . . Core Remaining (%) 100 | 100 . . Volleys Fired 65 | 4 39 22 Largest 2 | 2 2 2 Hottest 120 | 40 40 120 Shots Fired 123 | 8 78 37 Gun 95 | 8 78 9 Cannon 28 | . . 28 Launcher . | . . . Special . | . . . Kinetic 105 | 8 78 19 Thermal 18 | . . 18 Explosive . | . . . Electromagnetic . | . . . Robot Hit Streak 10 | 7 6 10 Robot Miss Streak 3 | . 3 1 Penetration Max . | . . . Secondary Targets 2 | . 2 . Max Gunslinging Chain 1 | . 1 . Shots Hit Robots 72 | 7 46 19 Core Hits 29 | 1 22 6 Critical Kills 3 | . 1 2 Critical Parts Destroyed . | . . . Critical Strikes 6 | . 1 5 Meltdown 2 | . . 2 Destroy 4 | . 1 3 Melee Attacks . | . . . Impact . | . . . Slashing . | . . . Piercing . | . . . Sneak Attacks . | . . . Combat Hostiles . | . . . Follow-up Attacks . | . . . Damage Inflicted 1258 | 107 630 521 Guns 788 | 107 630 51 Cannons 470 | . . 470 Explosions . | . . . Melee . | . . . Ramming . | . . . Kinetic 989 | 107 630 252 Thermal 269 | . . 269 Explosive . | . . . Electromagnetic . | . . . Impact . | . . . Slashing . | . . . Piercing . | . . . Highest Corruption . | . . . Average Corruption . | . . . Corruption Purged . | . . . Corruption Blocked . | . . . Overload Shots . | . . . Overflow Damage . | . . . Projectiles . | . . . Explosions . | . . . Melee . | . . . Knockbacks 3 | . . 3 Impact . | . . . Kinetic 2 | . . 2 Secondary 1 | . . 1 Self-Inflicted Damage . | . . . Shots . | . . . Rammed . | . . . Targets Rammed . | . . . Kicked . | . . . Crushed . | . . . Highest Temperature 5 | . 5 . Average Temperature 2 | . 2 . Received Heat Transfer 264 | . 180 84 Siege Activations . | . . . Martial Activations . | . . . Shielding Activations . | . . . Robots Disrupted . | . . . Combat Hostiles . | . . . Robots Corrupted . | . . . Combat Hostiles . | . . . Parts Fried . | . . . Impact Corruptions . | . . . Robots Melted 2 | . . 2 Combat Hostiles 2 | . . 2 Parts Melted 3 | . . 3 Heat Transferred 370 | . . 370 Parts Sabotaged . | . . . Parts Stolen . | . . . Parts Stripped . | . . . Power Chain Reactions . | . . . Alert | -11 -10 -10 ------- Run | Yrd Mat Sub Maximum Alert Level . | . . . Low Security (%) 100 | 100 100 . Level 1 . | . . . Level 2 . | . . . Level 3 . | . . . Level 4 . | . . . Level 5 . | . . . High Security . | . . . Max Security . | . . . Peak Influence 119 | 5 119 . Initial 3 | . 3 . Average 52 | . 56 . Influence Increases 338 | 5 333 . Destroy 0b10 Robot/C 200 | . 200 . Destroy 0b10 Robot/NC 30 | 5 25 . Destroy Leader 58 | . 58 . Successful Hack 20 | . 20 . Lose Combat Pursuer 30 | . 30 . Influence Decreases 338 | . 329 9 Entered New Map 7 | . 2 5 Time Decay 331 | . 327 4 Squads Dispatched 2 | . 2 . Investigation . | . . . Extermination . | . . . Reinforcement 2 | . 2 . Assault . | . . . Garrison . | . . . Intercept . | . . . Searches Triggered . | . . . Construction Impeded . | . . . Haulers Reinforced . | . . . Active Scanning Responses . | . . . Cargo Convoy Interrupts . | . . . Stealth | -11 -10 -10 --------- Run | Yrd Mat Sub Distress Signals 3 | . 3 . Communications Jammed . | . . . Distress Signals . | . . . Times Spotted 29 | . 21 8 Peak Tracking Total 4 | . 4 3 Tactical Retreats 1 | . 1 . Traps | -11 -10 -10 ------- Run | Yrd Mat Sub Traps Triggered 2 | . . 2 Indirectly . | . . . Trap Hack Attempts . | . . . Triggered . | . . . Disarmed . | . . . Reprogrammed . | . . . Reused . | . . . Traps Extracted . | . . . Installed . | . . . Triggered . | . . . Machines | -11 -10 -10 ---------- Run | Yrd Mat Sub Machines Disabled . | . . . Max in Single Turn . | . . . Machines Repaired . | . . . Machines Dismantled . | . . . Machines Sabotaged . | . . . Overloaded Fab Kills . | . . . Hacking | -11 -10 -10 --------- Run | Yrd Mat Sub Machines Accessed 7 | . 6 1 Terminals 5 | . 5 . Fabricators . | . . . Repair Stations . | . . . Recycling Units 1 | . 1 . Scanalyzers . | . . . Garrison Access . | . . . Total Hacks 13 | . 12 1 Successful 9 | . 8 1 Failed 4 | . 4 . Catastrophic . | . . . Database Lockouts . | . . . Manual 11 | . 11 . Terminals 11 | . 11 . Fabricators . | . . . Repair Stations . | . . . Recycling Units 1 | . 1 . Scanalyzers . | . . . Garrison Access . | . . . Terminal Hacks 2 | . 1 1 Prototype ID Bank 1 | . 1 . Proto ID Catalog 1 | . . 1 Fabricator Hacks . | . . . Repair Station Hacks . | . . . Recycling Unit Hacks 1 | . 1 . Retrieve Components 1 | . 1 . Scanalyzer . | . . . Garrison Access Hacks . | . . . Unauthorized Hacks 6 | . 6 . Terminals 6 | . 6 . Operators 1 | . 1 . Skim 5 | . 5 . Fabricators . | . . . Repair Stations . | . . . Recycling Units . | . . . Scanalyzers . | . . . Garrison Access . | . . . Data Cores Recovered . | . . . Used . | . . . Hacking Detections 5 | . 5 . Full Trace Events . | . . . Feedback Events . | . . . Feedback Blocked . | . . . Robot Schematics Acquired . | . . . Robots Built . | . . . Authchips . | . . . Time . | . . . Total Robot Build Rating . | . . . Part Schematics Acquired . | . . . Parts Built . | . . . Authchips . | . . . Time . | . . . Total Part Build Rating . | . . . Part Studies Acquired . | . . . Parts Repaired . | . . . Time . | . . . Parts Recycled . | . . . Recycled Matter . | . . . Retrieved Matter . | . . . Retrieved Components 2 | . 2 . Parts Scanalyzed . | . . . Part Schematics Acquired . | . . . Parts Damaged . | . . . Bothacking | -11 -10 -10 ------------ Run | Yrd Mat Sub Used RIF Installer . | . . . Robots Hacked . | . . . Non-combat . | . . . Combat . | . . . Robot Hacks Applied . | . . . Relay Couplers Released . | . . . Fabnet Peak Effective % . | . . . Robots Rewired . | . . . Allies Hacked . | . . . Hacks Repelled . | . . . Allies | -11 -10 -10 -------- Run | Yrd Mat Sub Total Allies . | . . . Largest Group . | . . . Highest-Rated Group . | . . . Highest-Rated Ally . | . . . Total Orders . | . . . Ally Attacks . | . . . Total Damage . | . . . Kills . | . . . Allies Corrupted . | . . . Allies Melted . | . . . Intel | -11 -10 -10 ------- Run | Yrd Mat Sub Active Infowar (turns) 2119 | 2 889 1228 Seismic 2119 | 2 889 1228 Robot Analysis Total . | . . . Derelict Logs Recovered 1 | . . 1 Drone Launches . | . . . Drone Recoveries . | . . . Exploration | -11 -10 -10 ------------- Run | Yrd Mat Sub Turns Passed 2224 | 68 889 1267 Spaces Moved 1079 | 28 309 742 Core 10 | 7 . 3 Treads 1022 | 21 309 692 Legs . | . . . Wheels 47 | . . 47 Hover . | . . . Flight . | . . . Fastest Speed 50 | 50 160 110 Average Speed 157 | 134 160 157 Slowest Speed 240 | 160 160 240 Overloaded Moves . | . . . Propulsion Burnouts . | . . . Robots Hopped . | . . . Potential Cave-ins . | . . . Cave-ins Triggered . | . . . Exploration Rate (%) 36 | 3 57 50 Regions Visited 2 Branch Regions 1 Pre-discovered Areas 3 | . 2 1 Known Exits Taken . | . . . Unknown Exits Taken 2 | 1 1 . Scrap Searched 3 | . . 3 Spaces Dug 2 | . . 2 Terrain Destroyed 2 | . . 2 Melee . | . . . Projectile 2 | . . 2 AOE . | . . . Terrain Rammed . | . . . Walls Destroyed . | . . . Machines Disabled . | . . . Actions | -11 -10 -10 --------- Run | Yrd Mat Sub Total 1481 | 47 628 806 Wait 291 | 8 262 21 Move 1077 | 27 308 742 Hop . | . . . Pick Up 16 | 1 11 4 Fast Attach 10 | 7 . 3 Attach 2 | . . 2 Detach . | . . . Swap 5 | . 3 2 Drop 15 | . 5 10 Fire 65 | 4 39 22 Melee . | . . . Ram . | . . . Kick . | . . . Crush . | . . . Escape Stasis . | . . . Rewire . | . . . Trap . | . . . Miscellaneous . | . . . Route ------- -11/Scrapyard -10/Materials (discovered 6 exits: *Mat x3 / [*Min x2] / *Sub) -10/Subcaves (discovered 2 exits: Mat / Rec) History --------- Turn | Location | Event 7 | -11/Scrapyard | Discovered new exit (range 15) 69 | -11/Scrapyard | Entered Materials 267 | -10/Materials | Discovered new exit (range 8) 319 | -10/Materials | Build established: Mutant 485 | -10/Materials | Discovered new exit (range 8) 490 | -10/Materials | Discovered new exit (range 5) 681 | -10/Materials | Discovered new exit (range 10) 737 | -10/Materials | Discovered new exit (range 6) 760 | -10/Materials | Learned Recycling recycling unit intel 840 | -10/Materials | Learned Storage garrison access intel 866 | -10/Materials | Learned 2 Storage zone layouts 881 | -10/Materials | Identified exit to Materials 888 | -10/Materials | Learned location of Recycling (-8) 896 | -10/Materials | Loaded intel: 9 trap records 916 | -10/Materials | Learned location of Subcaves (-10) 958 | -10/Materials | Entered Subcaves 959 | -10/Subcaves | Identified exit to Materials 1003 | -10/Subcaves | Identified exit to Recycling 1161 | -10/Subcaves | Learned location of Zion (-7) 1161 | -10/Subcaves | Met a Zionite searching for "candidates" 1181 | -10/Subcaves | A swath of the cavern ceiling suddenly collapsed 1268 | -10/Subcaves | Disturbed a concealed Subdweller 1440 | -10/Subcaves | Ambushed by Subdweller buried in earth 1865 | -10/Subcaves | Visited 4L-MR0's lab 1880 | -10/Subcaves | Found Prototype Special Melee Weapon 2115 | -10/Subcaves | Ambushed by Subdwellers from Twisted Machinery 2185 | -10/Subcaves | Ambushed by Subdwellers from Twisted Machinery 2188 | -10/Subcaves | Ambushed by Subdweller buried in earth 2189 | -10/Subcaves | Core integrity fell below 50% 2224 | -10/Subcaves | Core integrity fell below 20% 2225 | -10/Subcaves | Destroyed by AP-VU5(R) with Subdweller Machine Gun Last Messages --------------- 02149_ FQ-3GM(R) suffers critical hit (Destroy). 02151_ FQ-3GM(R) affixes Scrap Shield Fragment to Scrap Shield. 02152_ FQ-3GM(R) suffers critical hit (Meltdown). 02155_ Acquired 38 matter. 02160_ Acquired Sub. Monowheel. 02162_ Dropped Lgt. Treads. 02163_ Acquired Sub. Monowheel. 02165_ Acquired 39 matter. 02168_ Acquired 9 matter. 02185_ 51-0RV(R) emerges from the Twisted Machinery. 02185_ Sub. Beam Cannon destroyed. 02186_ Seismic Detector destroyed. 02189_ N1-OJF(R): "ARGHSUB!" 02190_ Slug Cannon destroyed. 02202_ Ion Engine destroyed. 02206_ Imp. Heat Sink destroyed. 02221_ Sub. Monowheel destroyed. Map ----- +----------------------------------------------------+ | ?????????????????????????????????????????????????? | | ?????????????????????????????????????????????????? | | ???????????????????????????????????? ????????????? | | ???????????????????????????????????? #???????????? | | ???????????????????????????????????? ???????????? | | ???????????????????????????????????? ##?????????? | | ???>????????????????????##?????????" ""##??###???? | | ???????????????????????##"?????###?# "### ##??? | | ???????????????????????#"""????# ## ##?? | | ???????????????????????# ????# ?? | | ???????????????????????# #???# ??? | | ????????????????????????# ???# ????? | | ????????????????????????# #??# #?????? | | ?????????????????????????# ###" #??????? | | ?????????????????????????# #" ##??????? | | ???????????????????####??## ## "##?????? | | ??????????????????## ##??### # " #?????? | | ????????????????### ###### #?????? | | ????????????????#" # ##?????? | | ?????????????????# RR ## #??????? | | ?????????????????## #### #??????? | | ??????????????????#"# #??# ##?????? | | ??????????????????##### ##??# #?????? | | ??????????????????????## ##???##" #?????? | | ???????????????????????# ##?#### ##?????? | | ???????????????????????# @ ### ##??????? | | ???????????????????????# ## #???????? | | ???????????????????????## ## ##???????? | | ????????????????????????# ### ###????????? | | ????????????????????????" ## #####??????? | | ????????????????????????# # ##?????? | | ???????????????????????? ### #?????? | | ???????????????????????? ## #?????? | | ????????????????????"" # &% ##?????? | | ????????????????????????### = ## #??????? | | ??????????????????????# ## ### !##?##??????? | | ????????????????????"% ?##!]%##?????????? | | ???????????????????" ## ###???????? | | ???????????????????" ## #???????? | | ???????????????????? ##??### ## #???????? | | ???????????????????? ????????####?#[ ##??????? | | ?????????????????????????????????## #??????? | | ?????????????????????????????????# #??????? | | ?????????????????????????????????# #??????? | | ?????????????????????????????????## #??????? | | ??????????????????????????????????# #??????? | | ??????????????????????????????????## ###????? | | ???????????????????????????????????# ##???? | | ???????????????????????????####???## #???? | | ??????????????????????????## ### ## #???? | +----------------------------------------------------+ Best States ------------- Heat Dissipation 39 Energy Generation 10 Energy Capacity 250 Matter Stores 300 Matter Capacity 300 Sight Range 16 Terrain Scan Density 10 Evasion (%) 40 Recoil Reduction 2 Item Schematics ----------------- None Robot Schematics ------------------ None Fabricated ------------ Nothing Repaired ---------- Nothing Studied --------- None Alien Tech Used ----------------- None Achievements -------------- Do Not Disturb Challenges ------------ None Game ------ Seed PowerZhirovHoverbase Manual? 0 Play Time 00:12:33 Cumulative 281.5 hours Start 2026.03.07 @ 13:19:29 End 2026.03.07 @ 13:29:43 Sessions 1 Manual Loads 0 Difficulty Rogue Special Mode None Game No. 215 Rogue 215 Adventurer 0 Explorer 0 Win Type - Total 12 Types 8/0/3/1/0/0/0/0/0/0 Lore% 85 Gallery% 71 Achievement% 58 Wizard Run 0 Options --------- Layout 1 ASCII 0 Keyboard 0 Movement Numpad Keybinds 0 Fullscreen 1 Font 24/Smallcaps Map View 50x35 Zoom Use 0% Tactical HUD 1 Map Filters NONE Filters NONE Steam 1 RUN: 6624eef7-79b2-4b7a-b6a5-e9b3be4d947d